Cogmind - Beta 11 @@@ ROGUE MODE // 2022.04.03 @ 21:01:16 Player: 3.14 Result: Destroyed by H-88 Terminator with KE Penetrator Performance ------------- Evolutions (8) 4000 Regions Visited (23) 4600 Robots Destroyed (198) 990 Value Destroyed (7794) 7794 Prototype IDs (8) 160 Alien Tech Used (0) 0 Bonus (5697) 5697 TOTAL SCORE: 23241 Bonus ------- High Alert Combat Kills 580 Follower Combat Kills 1247 Entered Garrisons 1400 Used RIF Installer 3500 Entered DSFs 500 Friendly Fire -1530 Cogmind --------- Core Integrity 0/1450 Matter 291/300 Energy 100/100 System Corruption 0% Temperature Cool (0) Movement Core (50) Location -2/DSF Parts ------- > --- POWER (2) -------- (None) > --- PROPULSION (5) --- (None) > --- UTILITY (14) ----- (None) > --- WEAPON (2) ------- (None) > --- INVENTORY (5) ---- Compact Particle Reactor Dual-blade Saw Blade Trap Peak State ------------ > --- POWER ------------ Antimatter Reactor > --- PROPULSION ------- Armored Wheel Centrium Wheel > --- UTILITY ---------- Huge Storage Unit Improved Melee Analysis Suite Improved Melee Analysis Suite Improved Target Analyzer Hardened Light Armor Plating Hardened Light Armor Plating Hardened Light Armor Plating Advanced Thermal Shield Advanced Thermal Shield Relay Coupler [Grunt] Relay Coupler [Sentry] Relay Coupler [Sentry] Relay Coupler [Hunter] Dynamic Insulation System > --- WEAPON ----------- Enhanced Autogun Improved Remote Datajack > --- INVENTORY -------- Light Nuclear Core Armored Medium Treads Armored Wheel Advanced Heat Sink Improved Transmission Jammer Hardened Light Armor Plating Hardened Light Armor Plating Hardened Light Armor Plating Relay Coupler [NC] Relay Coupler [Brawler] Relay Coupler [Brawler] Relay Coupler [Sentry] Relay Coupler [Sentry] Relay Coupler [Specialist] Relay Coupler [Hunter] Relay Coupler [Heavy] Enhanced Autogun Heavy Battle Rifle Heavy Battle Rifle Missile Launcher Missile Launcher Improved Datajack Katana Katana Katana [Rating: 88] Favorites ----------- Power Improved Ion Engine Engine Improved Ion Engine Power Core Light Nuclear Core Reactor Antimatter Reactor Propulsion Armored Wheel Treads Light Treads Leg Centrium Leg Wheel Armored Wheel Hover Unit Gravmag Array Flight Unit Advanced Surge Thruster Utility Huge Storage Unit Device Microactuators Storage Huge Storage Unit Processor Improved Melee Analysis Suite Hackware Relay Coupler [NC] Protection Hardened Light Armor Plating Weapon Katana Energy Gun Small Laser Energy Cannon Advanced Beam Cannon Ballistic Gun Enhanced Autogun Launcher Missile Launcher Special Weapon Improved Remote Datajack Slashing Weapon Katana Piercing Weapon Spear Special Melee Weapon Improved Datajack Build | -11 -10 -9 -9 -8 -8 -8 -8 -7 -7 -6 -6 -5 -5 -4 -4 -4 -4 -4 -3 -3 -3 -2 -2 ------- Run | Scr Mat Mat Sto Mat Gar Mat Gar Fac Gar Fac Gar Fac Gar Fac Was Fac Gar Arm Res Gar Res Res DSF Slots Evolved 16 | . . 2 . 2 . . . 2 . 2 . 2 . 2 . . . . 2 . . 2 . Power 1 | . . . . . . . . . . . . . . . . . . . . . . 1 . Propulsion 3 | . . . . . . . . . . . . . . . . . . . 2 . . 1 . Utility 12 | . . 2 . 2 . . . 2 . 2 . 2 . 2 . . . . . . . . . Weapon . | . . . . . . . . . . . . . . . . . . . . . . . . Parts Attached 305 | 6 5 9 17 22 16 23 11 13 15 8 42 8 23 12 8 7 12 9 4 . 12 9 14 Power 38 | 1 . 1 4 1 2 1 1 1 4 1 3 . 2 1 3 2 1 1 . . 2 4 2 Engine 16 | 1 . 1 4 1 2 1 1 1 . . 3 . 1 . . . . . . . . . . Core 9 | . . . . . . . . . 4 1 . . 1 1 1 . 1 . . . . . . Reactor 13 | . . . . . . . . . . . . . . . 2 2 . 1 . . 2 4 2 Propulsion 43 | 2 . 1 6 6 5 3 . . 2 . 2 . 2 2 . . 1 3 1 . 2 1 4 Treads 17 | 2 . 1 6 3 . 1 . . . . . . . . . . . 3 1 . . . . Leg 2 | . . . . . . . . . . . . . . . . . . . . . . . 2 Wheel 19 | . . . . 3 5 2 . . 2 . 2 . 2 2 . . 1 . . . . . . Hover 3 | . . . . . . . . . . . . . . . . . . . . . 2 1 . Flight 2 | . . . . . . . . . . . . . . . . . . . . . . . 2 Utility 113 | 1 2 2 3 9 1 11 3 6 3 5 19 5 8 7 5 3 2 5 2 . 5 3 3 Device 16 | . . . . . . . . . . . 3 2 . 4 . . 1 2 1 . 1 1 1 Storage 7 | 1 1 . . 1 . . . . . . . 1 . . . . . . . . . 2 1 Processor 16 | . 1 1 1 2 . . . 1 1 . 4 . . 1 1 1 . . 1 . . . 1 Hackware 22 | . . . . 1 . 3 1 1 . 1 1 1 5 2 . 2 1 1 . . 2 . . Protection 52 | . . 1 2 5 1 8 2 4 2 4 11 1 3 . 4 . . 2 . . 2 . . Artifact . | . . . . . . . . . . . . . . . . . . . . . . . . Weapon 111 | 2 3 5 4 6 8 8 7 6 6 2 18 3 11 2 . 2 8 . 1 . 3 1 5 Energy Gun 3 | 2 1 . . . . . . . . . . . . . . . . . . . . . . Energy Cannon 1 | . . . . 1 . . . . . . . . . . . . . . . . . . . Ballistic Gun 21 | . . 1 1 . 2 2 4 . 2 . 4 . 1 . . 1 3 . . . . . . Ballistic Cannon . | . . . . . . . . . . . . . . . . . . . . . . . . Launcher 18 | . . . 1 1 2 . 1 . 2 . 5 1 2 1 . . 2 . . . . . . Special Weapon 1 | . . . . . . . . . . . . . . . . . 1 . . . . . . Impact Weapon . | . . . . . . . . . . . . . . . . . . . . . . . . Slashing Weapon 47 | . 2 4 2 4 4 4 . 4 2 1 7 1 3 1 . . 2 . 1 . 1 . 4 Piercing Weapon 2 | . . . . . . . . . . . . . . . . . . . . . . 1 1 Special Melee Weapon 18 | . . . . . . 2 2 2 . 1 2 1 5 . . 1 . . . . 2 . . Unidentified Prototypes 7 | . . 1 1 2 . . . . . . . 1 . 1 . . . . . . . 1 . Parts Lost 78 | . . . 2 . 1 2 1 3 8 1 5 . 18 6 . 2 8 5 1 1 4 . 10 Power 13 | . . . . . . . 1 1 2 . 1 . 2 1 . 1 1 . . . 1 . 2 Propulsion 14 | . . . . . 1 1 . . 1 . . . 2 1 . . 2 1 . 1 1 . 3 Utility 41 | . . . 2 . . 1 . 2 4 1 3 . 11 3 . 1 5 3 1 . 1 . 3 Weapon 10 | . . . . . . . . . 1 . 1 . 3 1 . . . 1 . . 1 . 2 Highest Loss Streak 9 | . . . 1 . 1 1 1 2 6 1 2 . 6 4 . 1 6 3 1 2 2 . 9 To Critical Strikes . | . . . . . . . . . . . . . . . . . . . . . . . . Average Slot Usage (%) 84 | . 93 80 90 97 100 99 99 94 87 83 92 97 69 73 88 94 78 41 22 20 35 53 34 Engine 5 | . 14 11 11 9 9 9 9 6 1 . 5 5 3 . . . . . . . . . . Treads 4 | . 28 22 22 10 . . . . . . . . . . . . . 4 8 5 . . . Wheel 9 | . . . . 7 18 17 18 15 15 13 13 11 11 9 10 10 6 2 . . . . . Device 4 | . . . . . . . . . . . 9 17 5 15 10 10 10 5 6 9 10 10 5 Storage 6 | . 14 11 11 9 9 9 9 7 7 6 6 5 5 5 5 5 5 2 . . . 2 2 Processor 9 | . 7 11 16 12 9 7 . 1 10 13 15 17 8 9 13 11 11 4 1 . . . 2 Hackware 10 | . . . . 8 9 16 20 19 15 13 7 8 11 17 21 23 15 9 . . 2 4 3 Protection 15 | . . 3 8 21 27 20 24 27 22 23 25 17 7 . 16 16 11 4 . . 4 5 1 Ballistic Gun 1 | . . . . . 3 1 12 3 . . . . 1 3 . . 5 2 . . . . . Slashing Weapon 9 | . 2 21 21 17 13 15 1 11 6 5 5 5 4 4 5 5 2 . 4 4 4 . 2 Naked Turns 27 | . . . . . . . . . . . . . . . . . . 6 . . . . 21 Heaviest Build 126 | 11 31 30 40 108 111 105 110 110 108 108 120 113 112 110 123 126 123 119 3 3 34 56 56 Greatest Support 61 | 40 40 40 40 40 32 24 24 24 24 24 24 24 24 40 28 28 28 16 12 60 49 61 61 Greatest Overweight (x) 8 | . . . . 3 5 8 4 4 4 4 4 4 4 8 4 4 6 7 . . . . 4 Average Overweight (x) 2 | . . . . 1 3 3 4 4 3 3 4 4 3 3 3 3 5 1 . . . . . Largest Inventory Capacity 25 | 8 15 15 15 25 25 25 25 25 25 25 25 25 25 25 25 25 25 25 5 5 5 15 15 Average Capacity 21 | 6 14 15 15 18 25 25 25 25 25 25 25 25 25 25 25 25 25 14 5 5 5 11 10 Most Carried 25 | 7 15 15 15 25 25 25 25 25 25 25 25 25 25 23 25 25 25 25 5 5 5 12 14 Average Carried 20 | 4 8 14 14 18 24 24 24 22 23 24 23 24 22 22 24 24 24 13 4 5 4 7 7 Final Capacity 25 | 8 15 15 15 25 25 25 25 25 25 25 25 25 25 25 25 25 25 5 5 5 5 15 5 Final Carried 25 | 6 15 15 15 25 25 25 24 25 22 25 25 25 23 21 25 25 25 5 5 5 3 11 3 Class Distribution -------------------- 25% | Mutant 22% | Bothacker-Mutant 17% | Botlord-Mutant 16% | Bothacker-Gladiator 15% | Scavenger-Mutant 3% | Commander-Mutant Dominant Class ---------------- Mutant | -10/Materials Mutant | -9/Materials Mutant | -9/Storage Scavenger-Mutant | -8/Materials Mutant | -8/Garrison Bothacker-Mutant | -8/Materials Bothacker-Mutant | -8/Garrison Bothacker-Mutant | -7/Factory Bothacker-Mutant | -7/Garrison Bothacker-Gladiator | -6/Factory Bothacker-Gladiator | -6/Garrison Botlord-Mutant | -5/Factory Botlord-Mutant | -5/Garrison Scavenger-Mutant | -4/Factory Scavenger-Mutant | -4/Waste Botlord-Mutant | -4/Factory Botlord-Mutant | -4/Garrison Mutant | -4/Armory Mutant | -3/Research Mutant | -3/Garrison Mutant | -3/Research Mutant | -2/Research Mutant | -2/DSF Resources | -11 -10 -9 -9 -8 -8 -8 -8 -7 -7 -6 -6 -5 -5 -4 -4 -4 -4 -4 -3 -3 -3 -2 -2 ----------- Run | Scr Mat Mat Sto Mat Gar Mat Gar Fac Gar Fac Gar Fac Gar Fac Was Fac Gar Arm Res Gar Res Res DSF Matter Collected 4298 | 260 . 105 198 244 273 337 279 232 267 85 693 85 307 189 107 60 168 12 120 . 37 131 109 Remotely . | . . . . . . . . . . . . . . . . . . . . . . . . Salvage Created 8417 | 67 . 427 511 982 530 1468 239 383 378 214 1682 . 277 102 . 347 187 . 256 . 121 131 115 Parts 391 | . . 16 37 54 18 85 21 19 19 5 55 . 14 7 . 13 8 . 6 . 4 4 6 Haulers Intercepted 6 | . . . 1 2 . 1 . . . . . . . . . . . . 1 . 1 . . Recyclers Shooed 5 | . . 1 . 2 . . . . . . . . . . . . . . 1 . 1 . . Parts Field Recycled . | . . . . . . . . . . . . . . . . . . . . . . . . Retrieved Matter . | . . . . . . . . . . . . . . . . . . . . . . . . Parts Self-Destructed . | . . . . . . . . . . . . . . . . . . . . . . . . Prevented . | . . . . . . . . . . . . . . . . . . . . . . . . Kills | -11 -10 -9 -9 -8 -8 -8 -8 -7 -7 -6 -6 -5 -5 -4 -4 -4 -4 -4 -3 -3 -3 -2 -2 ------- Run | Scr Mat Mat Sto Mat Gar Mat Gar Fac Gar Fac Gar Fac Gar Fac Was Fac Gar Arm Res Gar Res Res DSF Combat Hostiles Destroyed 154 | . . 3 8 11 12 29 15 6 12 1 31 . 9 4 . 3 6 . . . 1 . 3 Melee 86 | . . 3 8 8 3 25 . 5 5 1 19 . . . . 3 2 . . . 1 . 3 Guns 8 | . . . . . . 4 2 1 . . 1 . . . . . . . . . . . . AOE 60 | . . . . 3 9 . 13 . 7 . 11 . 9 4 . . 4 . . . . . . Classes Destroyed 16 | 1 . 3 2 4 1 1 1 1 . . 1 . . 1 . . . . . . . . . Worker 8 | . . . . 3 . 1 . 1 . . . . . 3 . . . . . . . . . Builder 3 | . . . . 1 . . . 2 . . . . . . . . . . . . . . . Hauler 6 | . . . 1 2 . 1 . . . . . . . . . . . . 1 . 1 . . Recycler 15 | 1 . 4 1 5 . 1 . . . 1 . . . . . . . . 1 . . 1 . Mechanic 1 | . . . . 1 . . . . . . . . . . . . . . . . . . . Operator 4 | . . . 2 1 . . . . . . . . . . . 1 . . . . . . . Swarmer 50 | . . . . 4 6 5 7 3 4 . 6 . 6 4 . . 4 . . . 1 . . Cutter 5 | . . . . . . . 2 . . . . . . . . . . . . . . . 3 Grunt 64 | . . 1 7 2 2 17 5 2 6 . 14 . 3 . . 3 2 . . . . . . Brawler 2 | . . . . . . . . . . . 2 . . . . . . . . . . . . Duelist 6 | . . 1 . . 1 . . . 1 . 2 . 1 . . . . . . . . . . Sentry 22 | . . 1 1 5 2 3 2 1 1 . 6 . . . . . . . . . . . . Specialist 4 | . . . . . . 4 . . . . . . . . . . . . . . . . . Hunter 4 | . . . . . 1 . . . . 1 . . 1 . . 1 . . . . . . . Programmer 3 | . . . . . . . . 1 . . 1 . . . . 1 . . . . . . . Behemoth 1 | . . . . . . . . . . . . . . 1 . . . . . . . . . Best Kill Streak 8 | 1 . 4 3 3 6 5 8 4 6 1 4 . 6 7 . 1 4 . 1 . 1 1 2 Combat Bots Only 8 | . . 2 2 3 6 4 8 3 6 1 4 . 6 4 . 1 4 . . . 1 . 2 Max Kills in Single Turn 4 | 1 . 1 1 3 4 1 3 1 4 1 4 . 3 3 . 1 2 . 1 . 1 1 1 Gunslinging . | . . . . . . . . . . . . . . . . . . . . . . . . Exploded 4 | . . . . 3 4 . 3 . 4 . 4 . 3 1 . . 2 . . . . . . Melee 1 | . . 1 1 1 1 1 . 1 1 1 1 . . . . 1 1 . . . 1 . 1 Uniques/NPCs Destroyed . | . . . . . . . . . . . . . . . . . . . . . . . . Combat | -11 -10 -9 -9 -8 -8 -8 -8 -7 -7 -6 -6 -5 -5 -4 -4 -4 -4 -4 -3 -3 -3 -2 -2 -------- Run | Scr Mat Mat Sto Mat Gar Mat Gar Fac Gar Fac Gar Fac Gar Fac Was Fac Gar Arm Res Gar Res Res DSF Damage Taken 18756 | . . 378 496 671 476 1328 257 730 1182 140 2278 68 2083 747 . 681 593 1260 871 723 1357 . 2437 Core 4742 | . . 220 120 61 63 338 55 52 207 35 203 16 377 306 . 162 18 407 160 147 343 . 1452 Absorbed by Shields 37 | . . . . . . . . . . . . . 5 . . . . 10 . 22 . . . Redirected to Shielding 717 | . . . . 9 22 32 20 56 123 . 148 . 195 . . . . 112 . . . . . Regen/Repaired (Parts) 215 | . . . . 54 . 75 . . . 86 . . . . . . . . . . . . . Core Remaining (%) 54 | 100 100 . 15 . . . 6 . 63 . 72 . 60 . . . . 22 . . 50 . . Volleys Fired 98 | 1 . . . 1 8 10 19 6 10 . 14 . 10 7 . . 12 . . . . . . Largest 2 | 2 . . . 1 2 2 2 2 2 . 2 . 1 1 . . 2 . . . . . . Hottest 90 | 90 . . . 43 50 50 68 50 68 . 61 . 36 36 . . 61 . . . . . . Shots Fired 136 | 2 . . . 1 9 20 25 12 16 . 16 . 10 7 . . 18 . . . . . . Gun 75 | 2 . . . . 2 20 11 12 11 . 3 . 1 . . . 13 . . . . . . Cannon . | . . . . . . . . . . . . . . . . . . . . . . . . Launcher 60 | . . . . 1 7 . 14 . 5 . 13 . 9 7 . . 4 . . . . . . Special 1 | . . . . . . . . . . . . . . . . . 1 . . . . . . Kinetic 73 | . . . . . 2 20 11 12 11 . 3 . 1 . . . 13 . . . . . . Thermal 2 | 2 . . . . . . . . . . . . . . . . . . . . . . . Explosive 60 | . . . . 1 7 . 14 . 5 . 13 . 9 7 . . 4 . . . . . . Electromagnetic . | . . . . . . . . . . . . . . . . . . . . . . . . Robot Hit Streak 8 | 2 . . . . 6 4 4 8 8 . 4 . 3 . . . 3 . . . . . . Robot Miss Streak 4 | . . . . . 1 4 2 2 3 . 1 . 1 . . . 1 . . . . . . Penetration Max . | . . . . . . . . . . . . . . . . . . . . . . . . Secondary Targets 2 | . . . . . . 2 . . . . . . . . . . . . . . . . . Max Gunslinging Chain 1 | . . . . . . 1 . . . . . . . . . . . . . . . . . Shots Hit Robots 468 | 2 . 20 32 53 34 79 7 24 22 5 94 5 13 9 . 22 15 . 11 . 12 1 8 Core Hits 265 | 2 . 8 12 22 22 36 17 11 15 1 52 . 20 13 . 8 12 . 3 . 5 1 5 Critical Kills . | . . . . . . . . . . . . . . . . . . . . . . . . Critical Parts Destroyed . | . . . . . . . . . . . . . . . . . . . . . . . . Critical Strikes 39 | . . . 2 2 2 10 . 1 . . 12 1 1 . . 1 2 . 1 . 1 1 2 Sever 36 | . . . 2 2 2 10 . 1 . . 12 1 1 . . 1 2 . 1 . 1 . . Impale 3 | . . . . . . . . . . . . . . . . . . . . . . 1 2 Melee Attacks 638 | . . 27 41 74 36 114 3 23 19 5 100 8 69 10 . 25 23 . 21 . 23 1 16 Impact . | . . . . . . . . . . . . . . . . . . . . . . . . Slashing 574 | . . 27 41 74 36 109 . 19 19 3 90 3 58 10 . 20 23 . 21 . 20 . 1 Piercing 16 | . . . . . . . . . . . . . . . . . . . . . . 1 15 Sneak Attacks 75 | . . 6 6 17 . 3 . 5 . 2 13 . 3 5 . 8 . . 3 . 3 1 . Combat Hostiles 9 | . . . . . . . . 1 . 1 3 . . . . 4 . . . . . . . Follow-up Attacks 30 | . . 3 4 7 6 8 . . . . . . . . . . . . . . . . 2 Damage Inflicted 23964 | 27 13 695 1232 2424 1885 2478 1564 765 1498 275 5610 71 1321 1067 . 925 832 . 517 . 465 83 217 Guns 616 | 24 . . . . . 144 53 156 113 . 14 . . . . . 112 . . . . . . Cannons . | . . . . . . . . . . . . . . . . . . . . . . . . Explosions 6547 | . . . . 215 667 . 1511 . 779 . 1253 . 1064 599 . . 459 . . . . . . Melee 16782 | . . 695 1231 2209 1218 2334 . 609 606 275 4343 71 257 468 . 925 261 . 515 . 465 83 217 Ramming 19 | 3 13 . 1 . . . . . . . . . . . . . . . 2 . . . . Kinetic 592 | . . . . . . 144 53 156 113 . 14 . . . . . 112 . . . . . . Thermal 24 | 24 . . . . . . . . . . . . . . . . . . . . . . . Explosive 6547 | . . . . 215 667 . 1511 . 779 . 1253 . 1064 599 . . 459 . . . . . . Electromagnetic . | . . . . . . . . . . . . . . . . . . . . . . . . Impact . | . . . . . . . . . . . . . . . . . . . . . . . . Slashing 16482 | . . 695 1231 2209 1218 2334 . 609 606 275 4343 71 257 468 . 925 261 . 515 . 465 . . Piercing 300 | . . . . . . . . . . . . . . . . . . . . . . 83 217 Highest Corruption 34 | . . . 7 3 3 3 3 2 2 . 9 . 34 . . 1 1 4 . 5 8 . . Average Corruption 6 | . . . 4 2 3 3 3 1 2 . 8 . 26 . . 1 1 1 . 2 5 . . Corruption Purged . | . . . . . . . . . . . . . . . . . . . . . . . . Corruption Blocked . | . . . . . . . . . . . . . . . . . . . . . . . . Effects 149 | . . . 5 15 7 16 7 3 3 . 41 . 35 . . 1 3 4 . . 9 . . Message Errors 38 | . . . 1 2 2 6 1 . . . 13 . 9 . . . 1 2 . . 1 . . Matter Fused 34 | . . . 2 2 1 3 1 2 1 . 13 . 7 . . . 1 . . . 1 . . Heat Flow Errors 21 | . . . . 2 1 2 1 . . . 3 . 9 . . 1 . 1 . . 1 . . Energy Discharges 19 | . . . 1 4 2 . . 1 1 . 2 . 4 . . . 1 . . . 3 . . Parts Rejected 3 | . . . . 1 . 1 . . . . . . . . . . . . . . 1 . . Data Loss (minor) 17 | . . . . 2 . 2 3 . 1 . 5 . 2 . . . . 1 . . 1 . . Data Loss (major) 9 | . . . . . 1 1 1 . . . 3 . 2 . . . . . . . 1 . . Alerts 7 | . . . 1 2 . 1 . . . . 2 . 1 . . . . . . . . . . Misdirections 1 | . . . . . . . . . . . . . 1 . . . . . . . . . . Overload Shots . | . . . . . . . . . . . . . . . . . . . . . . . . Overflow Damage 1135 | . . 61 94 221 124 47 62 38 30 80 237 . 2 55 . 34 . . 43 . 7 . . Projectiles . | . . . . . . . . . . . . . . . . . . . . . . . . Explosions 253 | . . . . 11 52 . 62 . 19 . 104 . 2 3 . . . . . . . . . Melee 882 | . . 61 94 210 72 47 . 38 11 80 133 . . 52 . 34 . . 43 . 7 . . Knockbacks 1 | . . . . . . . . . . . . . . . . . . . 1 . . . . Impact 1 | . . . . . . . . . . . . . . . . . . . 1 . . . . Kinetic . | . . . . . . . . . . . . . . . . . . . . . . . . Secondary . | . . . . . . . . . . . . . . . . . . . . . . . . Self-Inflicted Damage 253 | . . . . . 13 . 67 . 75 . 64 . 34 . . . . . . . . . . Shots 8 | . . . . . 1 . 3 . 2 . 1 . 1 . . . . . . . . . . Rammed 6 | 1 1 . 2 . . . . . . . . . . . . . . 1 1 . . . . Targets Rammed 6 | 1 1 . 2 . . . . . . . . . . . . . . 1 1 . . . . Kicked . | . . . . . . . . . . . . . . . . . . . . . . . . Crushed . | . . . . . . . . . . . . . . . . . . . . . . . . Highest Temperature 267 | 30 . . 10 213 171 177 116 178 60 . 255 . 267 . . 257 64 226 . . 229 . . Average Temperature 63 | 17 . . 10 89 47 51 33 92 28 . 60 . 96 . . 122 25 122 . . 118 . . Received Heat Transfer 3546 | . . 36 213 306 45 639 45 198 483 . 699 36 231 84 . 78 39 72 87 96 159 . . Siege Activations . | . . . . . . . . . . . . . . . . . . . . . . . . Robots Corrupted . | . . . . . . . . . . . . . . . . . . . . . . . . Combat Hostiles . | . . . . . . . . . . . . . . . . . . . . . . . . Parts Fried 1 | . . . . . . . . . . . . . . . . 1 . . . . . . . Impact Corruptions . | . . . . . . . . . . . . . . . . . . . . . . . . Robots Melted . | . . . . . . . . . . . . . . . . . . . . . . . . Combat Hostiles . | . . . . . . . . . . . . . . . . . . . . . . . . Parts Melted . | . . . . . . . . . . . . . . . . . . . . . . . . Heat Transferred 62 | 62 . . . . . . . . . . . . . . . . . . . . . . . Parts Sabotaged . | . . . . . . . . . . . . . . . . . . . . . . . . Parts Stolen . | . . . . . . . . . . . . . . . . . . . . . . . . Parts Stripped . | . . . . . . . . . . . . . . . . . . . . . . . . Power Chain Reactions . | . . . . . . . . . . . . . . . . . . . . . . . . Missiles Intercepted . | . . . . . . . . . . . . . . . . . . . . . . . . Alert | -11 -10 -9 -9 -8 -8 -8 -8 -7 -7 -6 -6 -5 -5 -4 -4 -4 -4 -4 -3 -3 -3 -2 -2 ------- Run | Scr Mat Mat Sto Mat Gar Mat Gar Fac Gar Fac Gar Fac Gar Fac Was Fac Gar Arm Res Gar Res Res DSF Peak Influence 902 | 5 18 131 291 255 503 594 706 501 381 231 902 477 584 450 82 82 190 136 391 355 520 296 226 Initial 459 | . 3 7 . 96 63 245 170 370 210 184 161 459 333 278 82 . 16 99 66 293 199 292 222 Average 288 | 1 3 53 138 85 373 330 459 422 319 214 576 466 502 297 79 39 64 109 168 302 276 292 214 Maximum Alert Level 3 | . . . 1 1 2 2 3 2 1 1 3 2 2 2 . . . . 1 1 2 1 1 Low Security (%) 40 | 100 100 100 66 98 15 9 15 . . 12 2 . . . 100 100 100 100 61 . 34 . 14 Level 1 30 | . . . 33 1 44 66 29 32 100 87 20 . 10 93 . . . . 38 100 50 100 85 Level 2 25 | . . . . . 39 23 33 67 . . 54 100 89 6 . . . . . . 15 . . Level 3 4 | . . . . . . . 21 . . . 22 . . . . . . . . . . . . Level 4 . | . . . . . . . . . . . . . . . . . . . . . . . . Level 5 . | . . . . . . . . . . . . . . . . . . . . . . . . High Security . | . . . . . . . . . . . . . . . . . . . . . . . . Max Security . | . . . . . . . . . . . . . . . . . . . . . . . . Squads Dispatched 34 | . 1 . 5 2 . 8 . 1 . 1 . 1 . 4 . 3 . 2 1 . 2 . 3 Investigation 3 | . . . . 1 . . . . . . . . . 1 . 1 . . . . . . . Extermination 6 | . . . . . . . . 1 . 1 . 1 . 1 . 1 . 1 . . . . . Reinforcement 21 | . 1 . 2 1 . 8 . . . . . . . 1 . 1 . 1 1 . 2 . 3 Assault . | . . . . . . . . . . . . . . . . . . . . . . . . Garrison 4 | . . . 3 . . . . . . . . . . 1 . . . . . . . . . Intercept . | . . . . . . . . . . . . . . . . . . . . . . . . Searches Triggered . | . . . . . . . . . . . . . . . . . . . . . . . . Construction Impeded . | . . . . . . . . . . . . . . . . . . . . . . . . Haulers Reinforced 1 | . . . . . . . . . . . . . . . . . . . . . 1 . . Active Scanning Responses . | . . . . . . . . . . . . . . . . . . . . . . . . Cargo Convoy Interrupts . | . . . . . . . . . . . . . . . . . . . . . . . . Alert ID Control Effect 3 | . . . . . . . . . . . . . . . . 2 . . . . 1 . . Stealth | -11 -10 -9 -9 -8 -8 -8 -8 -7 -7 -6 -6 -5 -5 -4 -4 -4 -4 -4 -3 -3 -3 -2 -2 --------- Run | Scr Mat Mat Sto Mat Gar Mat Gar Fac Gar Fac Gar Fac Gar Fac Was Fac Gar Arm Res Gar Res Res DSF Distress Signals 12 | . . . . 1 . 3 . . . . . . . 1 . . . 5 1 . 1 . . Communications Jammed . | . . . . . . . . . . . . . . . . . . . . . . . . Distress Signals . | . . . . . . . . . . . . . . . . . . . . . . . . Times Spotted 370 | . 1 3 20 23 11 58 13 9 10 2 35 5 23 11 . 15 10 31 35 10 30 . 15 Peak Tracking Total 21 | . . 2 3 3 6 9 4 4 6 1 4 5 8 5 . 5 5 21 16 10 10 . 8 Tactical Retreats 34 | . . . 3 2 . 4 1 2 . . 1 . 1 2 . 1 1 1 5 1 8 . 1 Traps | -11 -10 -9 -9 -8 -8 -8 -8 -7 -7 -6 -6 -5 -5 -4 -4 -4 -4 -4 -3 -3 -3 -2 -2 ------- Run | Scr Mat Mat Sto Mat Gar Mat Gar Fac Gar Fac Gar Fac Gar Fac Was Fac Gar Arm Res Gar Res Res DSF Traps Triggered 19 | . . . 5 2 . . 3 1 . . 2 . 2 1 . . 1 . . 2 . . . Indirectly . | . . . . . . . . . . . . . . . . . . . . . . . . Trap Hack Attempts . | . . . . . . . . . . . . . . . . . . . . . . . . Triggered . | . . . . . . . . . . . . . . . . . . . . . . . . Disarmed . | . . . . . . . . . . . . . . . . . . . . . . . . Reprogrammed . | . . . . . . . . . . . . . . . . . . . . . . . . Reused 3 | . . . . . . . . . . . . . . . . . . . . . . . 3 Traps Extracted . | . . . . . . . . . . . . . . . . . . . . . . . . Installed 6 | . . . . . . . . . . . . . . . . . . . . . . . 6 Triggered 3 | . . . . . . . . . . . . . . . . . . . . . . . 3 Most Traps Carried 1 | . . . . . . . . . . . . . . . . . . . . . . . 1 Machines | -11 -10 -9 -9 -8 -8 -8 -8 -7 -7 -6 -6 -5 -5 -4 -4 -4 -4 -4 -3 -3 -3 -2 -2 ---------- Run | Scr Mat Mat Sto Mat Gar Mat Gar Fac Gar Fac Gar Fac Gar Fac Was Fac Gar Arm Res Gar Res Res DSF Machines Disabled 11 | . . . 1 . 1 . 3 . . . 3 . 2 . . . 1 . . . . . . Max in Single Turn 1 | . . . 1 . 1 . 1 . . . 1 . 1 . . . 1 . . . . . . Garrison Relay 7 | . . . . . 1 . 1 . . . 2 . 2 . . . 1 . . . . . . Machines Sabotaged . | . . . . . . . . . . . . . . . . . . . . . . . . Garrisons Compromised . | . . . . . . . . . . . . . . . . . . . . . . . . Overloaded Fab Kills . | . . . . . . . . . . . . . . . . . . . . . . . . Hacking | -11 -10 -9 -9 -8 -8 -8 -8 -7 -7 -6 -6 -5 -5 -4 -4 -4 -4 -4 -3 -3 -3 -2 -2 --------- Run | Scr Mat Mat Sto Mat Gar Mat Gar Fac Gar Fac Gar Fac Gar Fac Was Fac Gar Arm Res Gar Res Res DSF Machines Accessed 41 | . . 3 6 9 . 6 . 2 . 3 . 1 . 2 . 2 . 3 3 . . 1 . Terminals 22 | . . 2 4 5 . 4 . 1 . . . . . 1 . . . 3 1 . . 1 . Fabricators 1 | . . . . . . . . . . . . . . . . 1 . . . . . . . Repair Stations 5 | . . . . 2 . 1 . . . 1 . . . 1 . . . . . . . . . Recycling Units 3 | . . . 1 1 . . . . . 1 . . . . . . . . . . . . . Scanalyzers 2 | . . 1 . . . . . . . . . . . . . . . . 1 . . . . Garrison Access 8 | . . . 1 1 . 1 . 1 . 1 . 1 . . . 1 . . 1 . . . . Total Hacks 95 | . . 9 12 22 . 25 . 2 . 6 . 1 . 5 . 3 . 3 6 . . 1 . Successful 60 | . . 6 6 15 . 15 . 2 . 4 . 1 . 1 . 3 . 3 3 . . 1 . Failed 35 | . . 3 6 7 . 10 . . . 2 . . . 4 . . . . 3 . . . . Catastrophic 4 | . . . . 1 . 2 . . . . . . . . . . . . 1 . . . . Database Lockouts . | . . . . . . . . . . . . . . . . . . . . . . . . Manual 36 | . . 4 5 11 . 14 . . . 2 . . . . . . . . . . . . . Terminals 53 | . . 5 6 13 . 20 . 1 . . . . . 2 . . . 3 2 . . 1 . Fabricators 2 | . . . . . . . . . . . . . . . . 2 . . . . . . . Repair Stations 16 | . . . . 6 . 4 . . . 3 . . . 3 . . . . . . . . . Recycling Units 6 | . . . 2 2 . . . . . 2 . . . . . . . . . . . . . Scanalyzers 7 | . . 4 . . . . . . . . . . . . . . . . 3 . . . . Garrison Access 11 | . . . 4 1 . 1 . 1 . 1 . 1 . . . 1 . . 1 . . . . Terminal Hacks 23 | . . . 4 7 . 6 . 1 . . . . . . . . . 3 1 . . 1 . Part Schematic 1 | . . . . 1 . . . . . . . . . . . . . . . . . . . Prototype ID Bank 1 | . . . . 1 . . . . . . . . . . . . . . . . . . . Open Door 5 | . . . 2 . . . . . . . . . . . . . . 3 . . . . . Open DSF 2 | . . . . . . . . 1 . . . . . . . . . . . . . 1 . Terminal Index 1 | . . . . . . 1 . . . . . . . . . . . . . . . . . Unreport Threat 7 | . . . 1 3 . 3 . . . . . . . . . . . . . . . . . Locate Traps 2 | . . . 1 . . 1 . . . . . . . . . . . . . . . . . Zone Layout 4 | . . . . 2 . 1 . . . . . . . . . . . . 1 . . . . Fabricator Hacks 2 | . . . . . . . . . . . . . . . . 2 . . . . . . . Load Schematic 1 | . . . . . . . . . . . . . . . . 1 . . . . . . . Build 1 | . . . . . . . . . . . . . . . . 1 . . . . . . . Repair Station Hacks 12 | . . . . 5 . 4 . . . 2 . . . 1 . . . . . . . . . Scan Component 7 | . . . . 3 . 2 . . . 1 . . . 1 . . . . . . . . . Repair 5 | . . . . 2 . 2 . . . 1 . . . . . . . . . . . . . Recycling Unit Hacks . | . . . . . . . . . . . . . . . . . . . . . . . . Scanalyzer 5 | . . 4 . . . . . . . . . . . . . . . . 1 . . . . Insert Component 3 | . . 2 . . . . . . . . . . . . . . . . 1 . . . . Analyze 2 | . . 2 . . . . . . . . . . . . . . . . . . . . . Garrison Access Hacks 7 | . . . . 1 . 1 . 1 . 1 . 1 . . . 1 . . 1 . . . . Unlock Access 7 | . . . . 1 . 1 . 1 . 1 . 1 . . . 1 . . 1 . . . . Unauthorized Hacks 11 | . . 2 2 2 . 4 . . . 1 . . . . . . . . . . . . . Terminals 7 | . . 2 . 1 . 4 . . . . . . . . . . . . . . . . . Track 1 | . . . . . . 1 . . . . . . . . . . . . . . . . . Assimilate 1 | . . . . . . 1 . . . . . . . . . . . . . . . . . Botnet 4 | . . 2 . 1 . 1 . . . . . . . . . . . . . . . . . Operators 1 | . . . . . . 1 . . . . . . . . . . . . . . . . . Fabricators . | . . . . . . . . . . . . . . . . . . . . . . . . Repair Stations . | . . . . . . . . . . . . . . . . . . . . . . . . Recycling Units 4 | . . . 2 1 . . . . . 1 . . . . . . . . . . . . . Recyclers 1 | . . . 1 . . . . . . . . . . . . . . . . . . . . Mask 3 | . . . 1 1 . . . . . 1 . . . . . . . . . . . . . Scanalyzers . | . . . . . . . . . . . . . . . . . . . . . . . . Garrison Access . | . . . . . . . . . . . . . . . . . . . . . . . . Data Cores Recovered . | . . . . . . . . . . . . . . . . . . . . . . . . Used . | . . . . . . . . . . . . . . . . . . . . . . . . Hacking Detections 28 | . . 3 3 7 . 5 . . . 2 . 1 . 2 . 2 . . 3 . . . . Full Trace Events 4 | . . . 1 1 . . . . . . . . . 1 . 1 . . . . . . . Feedback Events . | . . . . . . . . . . . . . . . . . . . . . . . . Feedback Blocked . | . . . . . . . . . . . . . . . . . . . . . . . . Robot Schematics Acquired . | . . . . . . . . . . . . . . . . . . . . . . . . Robots Built . | . . . . . . . . . . . . . . . . . . . . . . . . Authchips . | . . . . . . . . . . . . . . . . . . . . . . . . Time . | . . . . . . . . . . . . . . . . . . . . . . . . Total Robot Build Rating . | . . . . . . . . . . . . . . . . . . . . . . . . Part Schematics Acquired 3 | . . 2 . 1 . . . . . . . . . . . . . . . . . . . Parts Built 2 | . . . . . . . . . . . . . . . . 2 . . . . . . . Authchips . | . . . . . . . . . . . . . . . . . . . . . . . . Time 36 | . . . . . . . . . . . . . . . . 36 . . . . . . . Total Part Build Rating 6 | . . . . . . . . . . . . . . . . 6 . . . . . . . Parts Repaired 5 | . . . . 2 . 2 . . . 1 . . . . . . . . . . . . . Time 150 | . . . . 70 . 64 . . . 16 . . . . . . . . . . . . . Parts Recycled . | . . . . . . . . . . . . . . . . . . . . . . . . Recycled Matter . | . . . . . . . . . . . . . . . . . . . . . . . . Retrieved Matter . | . . . . . . . . . . . . . . . . . . . . . . . . Retrieved Components . | . . . . . . . . . . . . . . . . . . . . . . . . Parts Scanalyzed 3 | . . 2 . . . . . . . . . . . . . . . . 1 . . . . Part Schematics Acquired 2 | . . 2 . . . . . . . . . . . . . . . . . . . . . Parts Damaged . | . . . . . . . . . . . . . . . . . . . . . . . . Bothacking | -11 -10 -9 -9 -8 -8 -8 -8 -7 -7 -6 -6 -5 -5 -4 -4 -4 -4 -4 -3 -3 -3 -2 -2 ------------ Run | Scr Mat Mat Sto Mat Gar Mat Gar Fac Gar Fac Gar Fac Gar Fac Was Fac Gar Arm Res Gar Res Res DSF Used RIF Installer 7 | . . . . . 1 . 1 . 1 . 1 . 1 . . . 1 . . 1 . . . Command Fork 1 | . . . . . . . . . . . 1 . . . . . . . . . . . . Threat Obfuscator 1 | . . . . . . . 1 . . . . . . . . . . . . . . . . Watcher Feeds 1 | . . . . . . . . . 1 . . . . . . . . . . . . . . Patrol Navigation 1 | . . . . . . . . . . . . . . . . . 1 . . . . . . Alert ID Control 1 | . . . . . . . . . . . . . 1 . . . . . . . . . . Autoassimilate 1 | . . . . . . . . . . . . . . . . . . . . 1 . . . Robots Hacked 22 | . . . . . . 1 2 2 . 1 . 2 7 . . 4 1 . . . 2 . . Non-combat . | . . . . . . . . . . . . . . . . . . . . . . . . Combat 22 | . . . . . . 1 2 2 . 1 . 2 7 . . 4 1 . . . 2 . . Robot Hacks Applied 26 | . . . . . . 2 2 3 . 2 . 3 7 . . 4 1 . . . 2 . . find_garrison 5 | . . . . . . 1 . 1 . 1 . 1 . . . . . . . . 1 . . go_dormant 2 | . . . . . . . . 1 . 1 . . . . . . . . . . . . . overwrite_iff 2 | . . . . . . . . . . . . . 1 . . 1 . . . . . . . streamctrl_high 3 | . . . . . . . . 1 . . . . . . . 2 . . . . . . . formatsys_high 14 | . . . . . . 1 2 . . . . 2 6 . . 1 1 . . . 1 . . Relay Couplers Released 30 | . . . . . 5 . 3 . . . 9 . 10 . . . 3 . . . . . . Machine Destruction 30 | . . . . . 5 . 3 . . . 9 . 10 . . . 3 . . . . . . Attached 20 | . . . . . . 2 1 1 . 1 1 1 5 2 . 2 1 1 . . 2 . . Fabnet Peak Effective % . | . . . . . . . . . . . . . . . . . . . . . . . . Robots Rewired 13 | . . . . . . . . . . . 9 . . . . . . 4 . . . . . Allies Hacked . | . . . . . . . . . . . . . . . . . . . . . . . . Hacks Repelled . | . . . . . . . . . . . . . . . . . . . . . . . . Allies | -11 -10 -9 -9 -8 -8 -8 -8 -7 -7 -6 -6 -5 -5 -4 -4 -4 -4 -4 -3 -3 -3 -2 -2 -------- Run | Scr Mat Mat Sto Mat Gar Mat Gar Fac Gar Fac Gar Fac Gar Fac Was Fac Gar Arm Res Gar Res Res DSF Total Allies 48 | . . . 10 . . 2 2 1 . . 9 3 9 . . 5 2 4 . . 1 . . Largest Group 10 | . . . 10 8 . 1 2 1 . . 6 2 4 2 . 4 2 4 . . 1 . . Highest-Rated Group 210 | . . . 88 72 . 10 20 32 . . 210 76 126 97 . 206 98 203 . . 64 . . Highest-Rated Ally 85 | . . . 16 16 . 10 15 32 . . 41 47 85 85 . 56 49 65 . . 64 . . Total Orders 1 | . . . . . . . . . . . . . . . . 1 . . . . . . . STAY 1 | . . . . . . . . . . . . . . . . 1 . . . . . . . Ally Attacks 213 | . . . 27 45 . 11 5 3 . . 51 10 22 11 . 15 11 1 . . 1 . . Total Damage 4376 | . . . 224 424 . 89 50 138 . . 1497 254 370 437 . 451 396 16 . . 30 . . Kills 42 | . . . 6 8 . 2 2 1 . . 9 2 6 3 . 2 . . . . 1 . . Allies Corrupted 1 | . . . . . . . . . . . 1 . . . . . . . . . . . . Allies Melted . | . . . . . . . . . . . . . . . . . . . . . . . . Intel | -11 -10 -9 -9 -8 -8 -8 -8 -7 -7 -6 -6 -5 -5 -4 -4 -4 -4 -4 -3 -3 -3 -2 -2 ------- Run | Scr Mat Mat Sto Mat Gar Mat Gar Fac Gar Fac Gar Fac Gar Fac Was Fac Gar Arm Res Gar Res Res DSF Robot Analysis Total . | . . . . . . . . . . . . . . . . . . . . . . . . Derelict Logs Recovered . | . . . . . . . . . . . . . . . . . . . . . . . . Drone Launches . | . . . . . . . . . . . . . . . . . . . . . . . . Drone Recoveries . | . . . . . . . . . . . . . . . . . . . . . . . . Exploration | -11 -10 -9 -9 -8 -8 -8 -8 -7 -7 -6 -6 -5 -5 -4 -4 -4 -4 -4 -3 -3 -3 -2 -2 ------------- Run | Scr Mat Mat Sto Mat Gar Mat Gar Fac Gar Fac Gar Fac Gar Fac Was Fac Gar Arm Res Gar Res Res DSF Turns Passed 12344 | 105 224 441 703 1465 394 1233 490 451 324 320 1778 268 1014 523 411 451 443 297 301 58 365 114 171 Spaces Moved 7000 | 55 129 200 329 616 182 514 259 187 147 177 869 163 517 341 266 198 184 279 471 101 531 157 128 Core 1077 | 2 . . . . . . . . . . . . . . . . . 222 471 99 244 . 39 Treads 1070 | 53 129 200 329 357 . . . . . . . . . . . . . . . 2 . . . Legs 5 | . . . . . . . . . . . . . . . . . . . . . . . 5 Wheels 4320 | . . . . 259 182 514 259 187 147 177 869 163 517 341 266 198 184 57 . . . . . Hover 500 | . . . . . . . . . . . . . . . . . . . . . 287 157 56 Flight 28 | . . . . . . . . . . . . . . . . . . . . . . . 28 Fastest Speed 22 | 50 160 160 160 145 145 135 150 150 135 135 150 150 135 120 141 141 141 50 50 50 50 52 22 Average Speed 130 | 156 160 160 160 172 148 149 150 150 142 145 150 150 147 136 147 157 185 85 50 52 53 52 57 Slowest Speed 250 | 160 160 160 160 250 155 210 150 150 150 150 150 150 150 210 158 158 210 230 50 170 60 52 185 Overloaded Moves . | . . . . . . . . . . . . . . . . . . . . . . . . Propulsion Burnouts . | . . . . . . . . . . . . . . . . . . . . . . . . Robots Hopped . | . . . . . . . . . . . . . . . . . . . . . . . . Cave-ins Triggered 5 | . . . . . . . . . . . . . 5 . . . . . . . . . . Exploration Rate (%) 35 | 5 24 18 50 62 47 56 51 6 45 5 71 7 75 10 94 6 49 27 18 39 14 4 77 Regions Visited 23 Branch Regions 2 Pre-discovered Areas . | . . . . . . . . . . . . . . . . . . . . . . . . Known Exits Taken 9 | . . 1 . 1 . 1 . 1 . 1 . 1 . . . 1 . . 1 . . 1 . Unknown Exits Taken 5 | 1 1 . 1 . . . . . . . . . . . . . . 1 . . 1 . . Scrap Searched . | . . . . . . . . . . . . . . . . . . . . . . . . Spaces Dug 190 | . . . . . 4 12 42 1 . . 21 1 68 9 . 1 21 . 2 . 8 . . Terrain Destroyed 469 | . . . . 17 15 12 62 1 47 . 100 1 114 41 . 1 48 . 2 . 8 . . Melee 73 | . . . . . . 12 . 1 . . . 1 40 . . 1 8 . 2 . 8 . . Projectile . | . . . . . . . . . . . . . . . . . . . . . . . . AOE 396 | . . . . 17 15 . 62 . 47 . 100 . 74 41 . . 40 . . . . . . Terrain Rammed . | . . . . . . . . . . . . . . . . . . . . . . . . Walls Destroyed . | . . . . . . . . . . . . . . . . . . . . . . . . Machines Disabled . | . . . . . . . . . . . . . . . . . . . . . . . . Actions | -11 -10 -9 -9 -8 -8 -8 -8 -7 -7 -6 -6 -5 -5 -4 -4 -4 -4 -4 -3 -3 -3 -2 -2 --------- Run | Scr Mat Mat Sto Mat Gar Mat Gar Fac Gar Fac Gar Fac Gar Fac Was Fac Gar Arm Res Gar Res Res DSF Total 9272 | 69 145 285 453 924 247 809 336 322 212 237 1226 185 711 372 285 304 234 334 504 105 579 188 206 Wait 778 | . . 13 51 184 . 143 13 84 9 24 101 . 59 . . 66 1 3 1 . 8 . 18 Move 6981 | 55 128 199 328 616 181 514 258 186 146 177 868 163 512 341 265 198 183 278 471 100 530 156 128 Hop . | . . . . . . . . . . . . . . . . . . . . . . . . Pick Up 179 | 7 9 18 3 21 5 11 3 5 7 13 16 1 14 1 7 4 2 2 4 . 4 12 10 Fast Attach 96 | 5 3 3 5 9 1 4 . 3 4 3 8 4 2 5 7 1 2 7 2 . 7 5 6 Attach 93 | 1 . . . 2 3 6 3 5 7 3 19 2 13 5 1 2 2 2 2 . 5 2 8 Detach 12 | . . 1 . . . . . 1 . . 6 . . 1 . . . . . . . 1 2 Swap 116 | . 2 6 12 11 12 13 8 5 4 2 15 2 8 2 . 4 8 . . . . 2 . Drop 169 | . 2 21 16 18 8 12 3 5 6 10 26 3 2 . 5 2 1 3 2 . 1 9 14 Fire 98 | 1 . . . 1 8 10 19 6 10 . 14 . 10 7 . . 12 . . . . . . Melee 584 | . . 24 36 62 29 95 3 22 19 5 100 8 64 10 . 25 23 . 21 . 23 1 14 Ram . | . . . . . . . . . . . . . . . . . . . . . . . . Kick . | . . . . . . . . . . . . . . . . . . . . . . . . Crush 5 | . 1 . 2 . . . . . . . . . . . . . . 1 1 . . . . Escape Stasis 57 | . . . . . . . 24 . . . 8 . 20 . . . . . . 5 . . . Rewire 98 | . . . . . . 1 2 . . . 45 2 7 . . 2 . 38 . . 1 . . Trap 6 | . . . . . . . . . . . . . . . . . . . . . . . 6 Miscellaneous . | . . . . . . . . . . . . . . . . . . . . . . . . Route ------- -11/Scrapyard -10/Materials -9/Materials -9/Storage -8/Materials (discovered 3 exits: *Fac x2 / Gar) -8/Garrison -8/Materials (discovered 3 exits: *Fac x2 / Gar) -8/Garrison (discovered 2 exits: *Fac x2) -7/Factory -7/Garrison -6/Factory -6/Garrison (discovered 3 exits: *Fac x3) -5/Factory -5/Garrison (discovered 3 exits: *Fac x3) -4/Factory -4/Waste -4/Factory -4/Garrison -4/Armory -3/Research -3/Garrison -3/Research -2/Research -2/DSF (discovered 1 exit: [*Acc]) History --------- Turn | Location | Event 16 | -11/Scrapyard | Discovered new exit (range 15) 106 | -11/Scrapyard | Entered Materials 262 | -10/Materials | Discovered new exit (range 14) 330 | -10/Materials | Entered another Materials area 330 | -9/Materials | Evolved 2 slots: Utility x2 335 | -9/Materials | Build established: Mutant 606 | -9/Materials | Discovered new exit (range 8) 624 | -9/Materials | Core integrity fell below 50% 769 | -9/Materials | Identified exit to Storage 771 | -9/Materials | Entered Storage 1183 | -9/Storage | Garrison activated, responded to threat 1232 | -9/Storage | Core integrity fell below 20% 1256 | -9/Storage | Assisted by bots powering up and referring to "LRC-V3" 1433 | -9/Storage | Discovered new exit (range 15) 1474 | -9/Storage | Entered Materials 1474 | -8/Materials | Accompanied by 8 allies 1474 | -8/Materials | Evolved 2 slots: Utility x2 1596 | -8/Materials | Build established: Commander-Mutant 2076 | -8/Materials | Discovered new exit (range 15) 2103 | -8/Materials | Build established: Mutant 2643 | -8/Materials | Build established: Scavenger-Mutant 2693 | -8/Materials | Discovered new exit (range 16) 2792 | -8/Materials | Repaired Med. Armor Plating 2831 | -8/Materials | Repaired Katana 2939 | -8/Materials | Identified exit to Garrison 2939 | -8/Materials | Entered Garrison 2972 | -8/Garrison | Triggered checkpoint 3015 | -8/Garrison | Garrison Relay disabled 3094 | -8/Garrison | Triggered checkpoint 3259 | -8/Garrison | Build established: Mutant 3268 | -8/Garrison | Discovered new exit (range 14) 3297 | -8/Garrison | Installed Relay Interface Framework 3333 | -8/Garrison | Entered Materials 3614 | -8/Materials | Build established: Bothacker-Mutant 3618 | -8/Materials | Core integrity fell below 50% 3668 | -8/Materials | Discovered new exit (range 16) 3951 | -8/Materials | Repaired Katana 3978 | -8/Materials | Repaired Weapon Shielding 4200 | -8/Materials | Discovered new exit (range 15) 4489 | -8/Materials | Core integrity fell below 20% 4566 | -8/Materials | Identified exit to Garrison 4566 | -8/Materials | Entered Garrison 4630 | -8/Garrison | Triggered checkpoint 4679 | -8/Garrison | Garrison Relay disabled 4774 | -8/Garrison | Triggered checkpoint 4786 | -8/Garrison | Triggered checkpoint 4792 | -8/Garrison | Triggered checkpoint 4821 | -8/Garrison | Destroyed 8 combat bots 4877 | -8/Garrison | Discovered new exit (range 10) 4938 | -8/Garrison | Triggered checkpoint 5021 | -8/Garrison | Discovered new exit (range 12) 5047 | -8/Garrison | Expanded RIF knowledge: Threat Obfuscation 5056 | -8/Garrison | Entered Factory 5056 | -7/Factory | Evolved 2 slots: Utility x2 5506 | -7/Factory | Identified exit to Garrison 5507 | -7/Factory | Entered Garrison 5564 | -7/Garrison | Triggered checkpoint 5751 | -7/Garrison | Lost 6 parts (1p1n3u1w) 5807 | -7/Garrison | Discovered new exit (range 8) 5824 | -7/Garrison | Expanded RIF knowledge: Watcher Feeds 5831 | -7/Garrison | Entered Factory 5831 | -6/Factory | Evolved 2 slots: Utility x2 5887 | -6/Factory | Repaired Arm. Wheel 6043 | -6/Factory | Build established: Bothacker-Gladiator 6151 | -6/Factory | Identified exit to Garrison 6151 | -6/Factory | Entered Garrison 6172 | -6/Garrison | Triggered checkpoint 6426 | -6/Garrison | Garrison Relay disabled 6530 | -6/Garrison | Spotted B-75 Beast 6685 | -6/Garrison | Triggered checkpoint 6782 | -6/Garrison | Triggered checkpoint 6853 | -6/Garrison | Spotted B-75 Beast 6989 | -6/Garrison | Discovered new exit (range 13) 7476 | -6/Garrison | Triggered checkpoint 7536 | -6/Garrison | Discovered new exit (range 7) 7600 | -6/Garrison | Triggered checkpoint 7657 | -6/Garrison | Garrison Relay disabled 7740 | -6/Garrison | Triggered checkpoint 7786 | -6/Garrison | Triggered checkpoint 7861 | -6/Garrison | Discovered new exit (range 12) 7923 | -6/Garrison | Expanded RIF knowledge: Command Fork 7929 | -6/Garrison | Entered Factory 7929 | -5/Factory | Evolved 2 slots: Utility x2 8197 | -5/Factory | Identified exit to Garrison 8197 | -5/Factory | Entered Garrison 8197 | -5/Garrison | Accompanied by 2 allies 8285 | -5/Garrison | Build established: Botlord-Mutant 8299 | -5/Garrison | Spotted B-75 Beast 8306 | -5/Garrison | Triggered checkpoint 8407 | -5/Garrison | Crushed by falling debris 8438 | -5/Garrison | Discovered new exit (range 15) 8484 | -5/Garrison | Triggered checkpoint 8585 | -5/Garrison | Crushed by falling debris 8586 | -5/Garrison | System corruption reached 10% 8616 | -5/Garrison | Lost 4 parts (1p3u) 8626 | -5/Garrison | Crushed by falling debris 8637 | -5/Garrison | Crushed by falling debris 8638 | -5/Garrison | Crushed by falling debris 8638 | -5/Garrison | System corruption reached 30% 8669 | -5/Garrison | Lost 5 parts (3u2w) 8710 | -5/Garrison | Discovered new exit (range 14) 8754 | -5/Garrison | Triggered checkpoint 8787 | -5/Garrison | Garrison Relay disabled 8848 | -5/Garrison | Triggered checkpoint 8848 | -5/Garrison | Triggered checkpoint 8861 | -5/Garrison | Assimilated Beast 6a with formatsys_high 8890 | -5/Garrison | Lost 6 parts (1p2n2u1w) 8979 | -5/Garrison | Discovered new exit (range 8) 8998 | -5/Garrison | Expanded RIF knowledge: Alert ID Control 9094 | -5/Garrison | Triggered checkpoint 9110 | -5/Garrison | Garrison Relay disabled 9211 | -5/Garrison | Entered Factory 9211 | -4/Factory | Accompanied by 2 allies 9211 | -4/Factory | Evolved 2 slots: Utility x2 9334 | -4/Factory | Destroyed Beast 6a 9509 | -4/Factory | Discovered new exit (range 22) 9573 | -4/Factory | Garrison activated, responded to threat 9650 | -4/Factory | Build established: Scavenger-Mutant 9708 | -4/Factory | Lost 4 parts (1p1n2u) 9734 | -4/Factory | Sucked down chute 9734 | -4/Factory | Entered Waste 9734 | -4/Waste | The area was eerily silent 10030 | -4/Waste | Discovered new exit (range 22) 10145 | -4/Waste | Entered Factory 10246 | -4/Factory | Fabricated Katana (x2) 10445 | -4/Factory | P-70 Sage assimilated allied Assassin 7a 10460 | -4/Factory | P-70 Sage assimilated allied Assassin 7b 10488 | -4/Factory | Build established: Botlord-Mutant 10596 | -4/Factory | Identified exit to Garrison 10596 | -4/Factory | Entered Garrison 10604 | -4/Garrison | Triggered checkpoint 10684 | -4/Garrison | Spotted B-86 Titan 10802 | -4/Garrison | Lost 6 parts (1p2n3u) 10826 | -4/Garrison | Triggered checkpoint 10830 | -4/Garrison | Garrison Relay disabled 10985 | -4/Garrison | Discovered new exit (range 15) 11031 | -4/Garrison | Expanded RIF knowledge: Patrol Navigation 11039 | -4/Garrison | Entered Armory 11168 | -4/Armory | Spotted B-86 Titan 11173 | -4/Armory | Released all parts (12) 11180 | -4/Armory | Core integrity fell below 50% 11202 | -4/Armory | Lost 3 parts (2u1w) 11334 | -4/Armory | Discovered new exit (range 4) 11336 | -4/Armory | Entered Research 11336 | -3/Research | Evolved 2 slots: Propulsion x2 11563 | -3/Research | Build established: Mutant 11637 | -3/Research | Identified exit to Garrison 11637 | -3/Research | Entered Garrison 11644 | -3/Garrison | Triggered checkpoint 11652 | -3/Garrison | Triggered checkpoint 11658 | -3/Garrison | Triggered checkpoint 11660 | -3/Garrison | Spotted B-86 Titan 11663 | -3/Garrison | Triggered checkpoint 11684 | -3/Garrison | Discovered new exit (range 14) 11693 | -3/Garrison | Expanded RIF knowledge: Autoassimilate 11695 | -3/Garrison | Entered Research 12051 | -3/Research | Discovered new exit (range 15) 12060 | -3/Research | Entered another Research area 12060 | -2/Research | Evolved 2 slots: Power x1, Propulsion x1 12128 | -2/Research | Found Antimissile System 12174 | -2/Research | Identified exit to DSF 12174 | -2/Research | Entered DSF 12205 | -2/DSF | Additional patrols routed to DSF 12276 | -2/DSF | Lost 9 parts (2p3n2u2w) 12324 | -2/DSF | Released all parts (9) 12331 | -2/DSF | Core integrity fell below 50% 12338 | -2/DSF | Discovered new exit (range 16) 12339 | -2/DSF | Core integrity fell below 20% 12345 | -2/DSF | Destroyed by H-88 Terminator with KE Penetrator Last Messages --------------- 12324_ Released Com. Particle Reactor. 12325_ Acquired Dual-blade Saw. 12328_ Knocked back. 12329_ C-30 ARC bursts open, deploying its payload. 12329_ H-88 Terminator unfolds itself. 12329_ Penetrated by Slug. 12329_ Slug penetrates A-15 Conveyor. 12330_ Knocked back. 12332_ Penetrated by Slug. 12338_ Knocked back. 12338_ Penetrated by Slug. 12338_ Slug penetrates Wall. 12338_ EXIT=FOUND 12338_ Knocked back. 12339_ Acquired 14 matter. 12342_ Knocked back. 12345_ C-30 ARC bursts open, deploying its payload. 12345_ H-88 Terminator unfolds itself. 12345_ Slug penetrates X-82 Rainmaker. 12345_ Penetrated by Slug. Map ----- +----------------------------------------------------+ | ??????????????????????= ?????????# | | ??????????????????????= ?????????#& | | ????????????????????### #????????## | | ????????????????????#** !????????#& | | ????????????????????#** !????????# | | ?????????????????????** !????????# | | ????????????????###???# #?######## | | ????????????# ??#!!!?## ###***# | | ????????????# #!!!## ##*** | | ???????????? "%" % | | ??????????? " | | ???????????? % % | | ????????????????#]]]## ##!!!#=== | | ?????????????????????## ###!!!#===# | | ????????????????????### H########### | | ????????????????????#!! **#???????# | | ????????????????????#!! **#???????? | | ????????????????????#!! **#???????? | | ???????##???????????### ###???????? | | ???????# ??????????#!! #???????? | | ???????# ??????????#!! #???????? | | ????????# ??########!! #???????? | | ??????### #?#//#///### ###???????? | | ?????##"" x##//#///### ###???????? | | ????"""""h x #???????? | | ??????#""